Workbook

Sheet Constant PRICE Estimate
A1: Table 2a: Quarterly Gross Domestic Product at Constant Prices (2019Q1=100) by Industry in Zimbabwe dollars
U2: ZWL | V2: ZiG
A3: Industry | B3: 2019 | C3: 2019 | D3: 2019 | E3: 2019 | F3: 2020 | G3: 2020 | H3: 2020 | I3: 2020 | J3: 2021 | K3: 2021 | L3: 2021 | M3: 2021 | N3: 2022 | O3: 2022 | P3: 2022 | Q3: 2022 | R3: 2023 | S3: 2023 | T3: 2023 | U3: 2023 | V3: 2024 | W3: 2024
B4: Q1 | C4: Q2 | D4: Q3 | E4: 0 | F4: Q1 | G4: Q2 | H4: Q3 | I4: Q4 | J4: Q1 | K4: Q2 | L4: Q3 | M4: Q4 | N4: Q1 | O4: Q2 | P4: Q3 | Q4: Q4 | R4: Q1 | S4: Q2 | T4: Q3 | U4: Q4 | V4: Q1 | W4: Q2
A5: Agriculture, Fishing and forestry | B5: 5076547494 | C5: 6215568816 | D5: 4677756273 | E5: 4864085991 | F5: 4657798058 | G5: 5966325527 | H5: 4113982209 | I5: 6960439482 | J5: 6220559656 | K5: 6999514792 | L5: 5248366265 | M5: 7021941848 | N5: 8021645889 | O5: 6231768889 | P5: 6229260036 | Q5: 6576110373 | R5: 8521444244 | S5: 7248734118 | T5: 6716067103 | U5: 6280951592 | V5: 1.309295627e+10 | W5: 1.015824565e+10
A6: Mining and Quarrying | B6: 5878659276 | C6: 5994725210 | D6: 6851856262 | E6: 6802036921 | F6: 6343287624 | G6: 7298569016 | H6: 5984072310 | I6: 5963323556 | J6: 5325813898 | K6: 6662166462 | L6: 7512298899 | M6: 7591184743 | N6: 6642724507 | O6: 6692623004 | P6: 8250300332 | Q6: 8350419879 | R6: 7777574042 | S6: 8099812691 | T6: 7880639201 | U6: 7753100163 | V6: 1.397718114e+10 | W6: 1.416123943e+10
A7: Manufacturing | B7: 7806407274 | C7: 3967551169 | D7: 6679193910 | E7: 1.172305296e+10 | F7: 7521466750 | G7: 3906641314 | H7: 4971706663 | I7: 8195250899 | J7: 3728412829 | K7: 3523658987 | L7: 8777727545 | M7: 8860095376 | N7: 4701984865 | O7: 5081506509 | P7: 7568656206 | Q7: 7874558261 | R7: 5446340118 | S7: 6010675220 | T7: 6576334578 | U7: 7730471039 | V7: 1.298291239e+10 | W7: 1.308774817e+10
A8: Electricity, Gas, Steam and Air Conditioning Supply | B8: 1953824583 | C8: 1774145857 | D8: 1210409832 | E8: 1023255666 | F8: 1147088094 | G8: 1238808070 | H8: 1641692021 | I8: 1556674333 | J8: 1623723072 | K8: 1944732289 | L8: 1958933021 | M8: 1950672541 | N8: 2005285894 | O8: 2109433096 | P8: 2055594077 | Q8: 1568362933 | R8: 1271332427 | S8: 1980345259 | T8: 2234946387 | U8: 1967421457 | V8: 3620827862 | W8: 3497871079
A9: Water Supply; Sewerage, Waste Management and Remediation Activities | B9: 52713181.81 | C9: 50160761.14 | D9: 57058689.56 | E9: 372658099.1 | F9: 50640445.43 | G9: 39618908.93 | H9: 56466103.84 | I9: 395932830 | J9: 123868417.7 | K9: 133960536.4 | L9: 198209321.5 | M9: 155651033.3 | N9: 142613818.3 | O9: 145162333.5 | P9: 187827949.5 | Q9: 146483925.9 | R9: 121808050.8 | S9: 134920675.7 | T9: 190875776 | U9: 145328758.9 | V9: 198223494.6 | W9: 184004644.4
A10: Construction | B10: 1299355372 | C10: 1542379270 | D10: 1376069827 | E10: 1535343751 | F10: 1286225969 | G10: 1116657753 | H10: 1829255541 | I10: 1805285472 | J10: 1260432599 | K10: 1473515548 | L10: 1842839665 | M10: 1674651040 | N10: 1244476631 | O10: 1532746323 | P10: 1873357423 | Q10: 1616787768 | R10: 1582107206 | S10: 1830709151 | T10: 1262850866 | U10: 2015012708 | V10: 3239347123 | W10: 3370602689
A11: Wholesale and Retail Trade; Repair of Motor Vehicles and Motorcycles | B11: 9584695674 | C11: 1.054246496e+10 | D11: 1.111548875e+10 | E11: 1.045954735e+10 | F11: 1.04585969e+10 | G11: 7639531773 | H11: 8683829531 | I11: 1.068883111e+10 | J11: 1.04386162e+10 | K11: 1.056144561e+10 | L11: 9874181199 | M11: 9626556949 | N11: 1.048341346e+10 | O11: 1.065550404e+10 | P11: 1.024465482e+10 | Q11: 1.098588784e+10 | R11: 1.182967641e+10 | S11: 1.105248062e+10 | T11: 1.08072687e+10 | U11: 1.145617914e+10 | V11: 1.789379748e+10 | W11: 1.856732744e+10
A12: Transportation and Storage | B12: 1124555653 | C12: 1620886672 | D12: 1465787816 | E12: 1224413832 | F12: 901580677.3 | G12: 939099101.3 | H12: 969751150.8 | I12: 982520080.7 | J12: 770179667.1 | K12: 1070023972 | L12: 1218736768 | M12: 1057109773 | N12: 863408245.8 | O12: 1135007973 | P12: 1249486983 | Q12: 1139613391 | R12: 971007619.8 | S12: 1082465928 | T12: 1370408306 | U12: 1404321246 | V12: 1720533300 | W12: 2134926511
A13: Accommodation and Food Service Activities | B13: 1072390299 | C13: 1449809853 | D13: 1527113301 | E13: 1278605692 | F13: 934531269.5 | G13: 120106501.8 | H13: 295075227.7 | I13: 728175467.3 | J13: 447704490.2 | K13: 757355840.6 | L13: 692608682.9 | M13: 979407324.4 | N13: 798726271.9 | O13: 971973002.1 | P13: 921295462.8 | Q13: 866610667.6 | R13: 804474878.3 | S13: 1140864617 | T13: 1236908151 | U13: 1316062840 | V13: 1689525896 | W13: 1565338553
A14: Information and Communication | B14: 2483438206 | C14: 2497019704 | D14: 2737485609 | E14: 2625028950 | F14: 2593462597 | G14: 2621267181 | H14: 3112058551 | I14: 2936730016 | J14: 2910812520 | K14: 2464699907 | L14: 3742676974 | M14: 3244351555 | N14: 2703768939 | O14: 3303840273 | P14: 4114142961 | Q14: 3985102802 | R14: 3476620587 | S14: 3594138537 | T14: 4790742362 | U14: 4516762847 | V14: 7868232483 | W14: 7742445123
A15: Financial and Insurance Activities | B15: 3582702508 | C15: 3262773416 | D15: 3551112892 | E15: 3475031198 | F15: 4121761748 | G15: 3837357962 | H15: 3712325710 | I15: 3853045811 | J15: 3978952878 | K15: 3991042333 | L15: 3965783575 | M15: 4055731465 | N15: 4639583792 | O15: 4559202684 | P15: 4512765132 | Q15: 4779271779 | R15: 5353475507 | S15: 4761587360 | T15: 4519399709 | U15: 4298291488 | V15: 7302326815 | W15: 7612981665
A16: Real Estate Activities | B16: 1305216793 | C16: 1373471783 | D16: 1637601147 | E16: 1871902735 | F16: 1889589874 | G16: 1289619990 | H16: 1526968121 | I16: 1529095388 | J16: 1575943124 | K16: 1568900274 | L16: 1716010377 | M16: 1630014472 | N16: 1615807441 | O16: 1629063073 | P16: 1617332922 | Q16: 1635949532 | R16: 1626028573 | S16: 1623643527 | T16: 1613839292 | U16: 1652832075 | V16: 2775052687 | W16: 2830553740
A17: Professional, Scientific and Technical Activities | B17: 646633189.5 | C17: 662967434.9 | D17: 673069812.5 | E17: 700385557.3 | F17: 583809522 | G17: 605333593.3 | H17: 630631616.1 | I17: 611668668 | J17: 583259085.2 | K17: 584533805 | L17: 598213457.9 | M17: 590440371.9 | N17: 581963836.9 | O17: 584677833 | P17: 575919334.8 | Q17: 606051350.4 | R17: 624882173.6 | S17: 640953703 | T17: 523944669.1 | U17: 580505932 | V17: 979535676.2 | W17: 978122116.3
A18: Administrative and support service activities | B18: 852888092.9 | C18: 869813349.8 | D18: 812753231.6 | E18: 708404082.6 | F18: 617384938.7 | G18: 515163046.3 | H18: 461637931.4 | I18: 500359476.8 | J18: 559370850.8 | K18: 630041922.2 | L18: 637443691.4 | M18: 572983137.8 | N18: 603129345.7 | O18: 560875007.9 | P18: 534112297.1 | Q18: 743258213.1 | R18: 708478239.9 | S18: 712514518.7 | T18: 538025868.6 | U18: 520511616.7 | V18: 1056664543 | W18: 1016069480
A19: Public Administration and Defence; Compulsory Social Security | B19: 1183436695 | C19: 1158877806 | D19: 1184891809 | E19: 1197634049 | F19: 1180312781 | G19: 1189980814 | H19: 1206976131 | I19: 1227949730 | J19: 1252561126 | K19: 1272357219 | L19: 1269453183 | M19: 1263618995 | N19: 1300402190 | O19: 1251415737 | P19: 1294123040 | Q19: 1229098512 | R19: 1239203826 | S19: 1218407797 | T19: 1372291070 | U19: 1403983363 | V19: 2430956590 | W19: 2379990159
A20: Education | B20: 1953288199 | C20: 1958774431 | D20: 1909420344 | E20: 1795309443 | F20: 1613647758 | G20: 1434337254 | H20: 1279138259 | I20: 1269246531 | J20: 1378910670 | K20: 1461856684 | L20: 1539491601 | M20: 1542166726 | N20: 1540246280 | O20: 1523834175 | P20: 1568062886 | Q20: 1617419938 | R20: 1647849871 | S20: 1716097982 | T20: 1600728499 | U20: 1712493110 | V20: 2897709756 | W20: 2844925442
A21: Human Health and Social Work Activities | B21: 1121122428 | C21: 1084883273 | D21: 1112373072 | E21: 1098359349 | F21: 1147211267 | G21: 1216700271 | H21: 1310801413 | I21: 1412611616 | J21: 1289141559 | K21: 1566086464 | L21: 1608026783 | M21: 1570099966 | N21: 1525404905 | O21: 1496796153 | P21: 1446766800 | Q21: 1464016614 | R21: 1475336237 | S21: 1523387193 | T21: 1511494785 | U21: 1563863215 | V21: 2529014313 | W21: 2530222186
A22: Arts, Entertainment and Recreation | B22: 372494201.3 | C22: 376973235.2 | D22: 360697844.4 | E22: 329813955.6 | F22: 275317059.3 | G22: 245747817.6 | H22: 235122884.3 | I22: 242764853.5 | J22: 271807731.5 | K22: 287779254.1 | L22: 292361634.2 | M22: 287092272.6 | N22: 300642373.7 | O22: 299730353.2 | P22: 315197030.9 | Q22: 264684708.3 | R22: 280722338.1 | S22: 291482354.6 | T22: 294702665.7 | U22: 327488809.8 | V22: 495585525.2 | W22: 494746938
A23: Other Services | B23: 1163925413 | C23: 1130744797 | D23: 1148015584 | E23: 998943014.9 | F23: 927326948.1 | G23: 830185134 | H23: 843359277 | I23: 747625038.9 | J23: 804655252.5 | K23: 818603215 | L23: 838176244.8 | M23: 792398570.2 | N23: 801915038.5 | O23: 831873701.1 | P23: 838551290.6 | Q23: 861060631.9 | R23: 862919757.9 | S23: 820401751.1 | T23: 862483900.3 | U23: 860652222 | V23: 1455355999 | W23: 1463387525
A24: Activities of Households as Employers Producing Activities of Households for own use | B24: 75349065.5 | C24: 86672434.18 | D24: 82810595.71 | E24: 87468039.53 | F24: 80795073.26 | G24: 81491655.49 | H24: 78696104.76 | I24: 81051647.82 | J24: 87647945.24 | K24: 85221560.66 | L24: 79616009.73 | M24: 76875015.46 | N24: 71356127.14 | O24: 76739212.57 | P24: 83660765.71 | Q24: 89448094.52 | R24: 94225337.63 | S24: 76844967.28 | T24: 80606161.19 | U24: 71248930.6 | V24: 132016744.4 | W24: 130780167.9
A25: GDP basic price | B25: =SUM(B5:B24) -> 4.85896436e+10 | C25: 4.762066423e+10 | D25: 5.017096661e+10 | E25: 5.417128063e+10 | F25: 4.833183535e+10 | G25: 4.213254268e+10 | H25: 4.294354676e+10 | I25: 5.1688582e+10 | J25: 4.463237357e+10 | K25: 4.785749667e+10 | L25: 5.36111549e+10 | M25: 5.454304318e+10 | N25: 5.058849986e+10 | O25: 5.067377337e+10 | P25: 5.548106775e+10 | Q25: 5.640019721e+10 | R25: 5.571550744e+10 | S25: 5.556046797e+10 | T25: 5.598455805e+10 | U25: 5.757748255e+10 | V25: =SUM(V5:V24) -> 9.833775609e+10 | W25: =SUM(W5:W24) -> 9.67515287e+10
A26: Net taxes on products | B26: =B27-B28 -> 2920953311 | C26: =C27-C28 -> 2864410533 | D26: 2844551388 | E26: 3080743003 | F26: 2735446693 | G26: 2397316129 | H26: 2443036914 | I26: 2916517893 | J26: 2582722129 | K26: 2525867326 | L26: 3071620257 | M26: 3327041118 | N26: =N27-N28 -> 2795029586 | O26: =O27-O28 -> 2922839220 | P26: 3122332513 | Q26: 3192107640 | R26: =R27-R28 -> 3078074200 | S26: =S27-S28 -> 3058052589 | T26: 3069902611 | U26: 3148829774 | V26: =V27-V28 -> 5164909592 | W26: =W27-W28 -> 5085721869
A27: Taxes on products | B27: 2920953311 | C27: 2864410533 | D27: 3006898649 | E27: 3235442451 | F27: 2806088095 | G27: 2469719019 | H27: 2514928149 | I27: 2992153034 | J27: 2645091160 | K27: 2605906570 | L27: 3158754577 | M27: 3410554725 | N27: 2867750462 | O27: 3007519758 | P27: 3210677214 | Q27: 3278093722 | R27: 3155296917 | S27: 3140068674 | T27: 3161021465 | U27: 3241483210 | V27: 5298438668 | W27: 5234206201
A28: Subsidies | B28: 0 | C28: 0 | D28: 162347261.2 | E28: 154699448.4 | F28: 70641401.8 | G28: 72402889.37 | H28: 71891235.15 | I28: 75635140.82 | J28: 62369031.32 | K28: 80039243.72 | L28: 87134320.59 | M28: 83513607.5 | N28: 72720875.81 | O28: 84680538.07 | P28: 88344700.97 | Q28: 85986082.19 | R28: 77222717.39 | S28: 82016084.61 | T28: 91118853.97 | U28: 92653435.77 | V28: 133529075.3 | W28: 148484331.7
A29: GDP at market price | B29: =B25+B26 -> 5.151059691e+10 | C29: =C25+C26 -> 5.048507476e+10 | D29: 5.301551799e+10 | E29: 5.725202363e+10 | F29: 5.106728204e+10 | G29: 4.452985881e+10 | H29: 4.538658367e+10 | I29: 5.46050999e+10 | J29: 4.72150957e+10 | K29: 5.0383364e+10 | L29: 5.668277515e+10 | M29: 5.787008429e+10 | N29: 5.338352944e+10 | O29: 5.359661259e+10 | P29: 5.860340027e+10 | Q29: 5.959230485e+10 | R29: =R25+R26 -> 5.879358164e+10 | S29: =S25+S26 -> 5.861852056e+10 | T29: 5.905446066e+10 | U29: 6.072631233e+10 | V29: =V25+V26 -> 1.035026657e+11 | W29: =W25+W26 -> 1.018372506e+11

Sheet Contribution KP
A1: Table 2b. Percentage Contribution: Quarterly Gross Domestic Product at Constant Prices by Industry (2024Q1=100)
A3: Industry | B3: 2024 | C3: 2024
B4: Q1 | C4: Q2
A5: Agriculture, Fishing and forestry | B5: ='Constant PRICE Estimate'!V5/'Constant PRICE Estimate'!$V$29*100 -> 12.64987349 | C5: ='Constant PRICE Estimate'!W5/'Constant PRICE Estimate'!$W$29*100 -> 9.974980266
A6: Mining and Quarrying | B6: ='Constant PRICE Estimate'!V6/'Constant PRICE Estimate'!$V$29*100 -> 13.50417503 | C6: ='Constant PRICE Estimate'!W6/'Constant PRICE Estimate'!$W$29*100 -> 13.90575585
A7: Manufacturing | B7: ='Constant PRICE Estimate'!V7/'Constant PRICE Estimate'!$V$29*100 -> 12.54355364 | C7: ='Constant PRICE Estimate'!W7/'Constant PRICE Estimate'!$W$29*100 -> 12.85163149
A8: Electricity, Gas, Steam and Air Conditioning Supply | B8: ='Constant PRICE Estimate'!V8/'Constant PRICE Estimate'!$V$29*100 -> 3.498294308 | C8: ='Constant PRICE Estimate'!W8/'Constant PRICE Estimate'!$W$29*100 -> 3.434765824
A9: Water Supply; Sewerage, Waste Management and Remediation Activities | B9: ='Constant PRICE Estimate'!V9/'Constant PRICE Estimate'!$V$29*100 -> 0.1915153521 | C9: ='Constant PRICE Estimate'!W9/'Constant PRICE Estimate'!$W$29*100 -> 0.1806850081
A10: Construction | B10: ='Constant PRICE Estimate'!V10/'Constant PRICE Estimate'!$V$29*100 -> 3.129723376 | C10: ='Constant PRICE Estimate'!W10/'Constant PRICE Estimate'!$W$29*100 -> 3.309793489
A11: Wholesale and Retail Trade; Repair of Motor Vehicles and Motorcycles | B11: ='Constant PRICE Estimate'!V11/'Constant PRICE Estimate'!$V$29*100 -> 17.28824795 | C11: ='Constant PRICE Estimate'!W11/'Constant PRICE Estimate'!$W$29*100 -> 18.23235342
A12: Transportation and Storage | B12: ='Constant PRICE Estimate'!V12/'Constant PRICE Estimate'!$V$29*100 -> 1.662308201 | C12: ='Constant PRICE Estimate'!W12/'Constant PRICE Estimate'!$W$29*100 -> 2.096410203
A13: Accommodation and Food Service Activities | B13: ='Constant PRICE Estimate'!V13/'Constant PRICE Estimate'!$V$29*100 -> 1.632350128 | C13: ='Constant PRICE Estimate'!W13/'Constant PRICE Estimate'!$W$29*100 -> 1.537098207
A14: Information and Communication | B14: ='Constant PRICE Estimate'!V14/'Constant PRICE Estimate'!$V$29*100 -> 7.601961197 | C14: ='Constant PRICE Estimate'!W14/'Constant PRICE Estimate'!$W$29*100 -> 7.602763311
A15: Financial and Insurance Activities | B15: ='Constant PRICE Estimate'!V15/'Constant PRICE Estimate'!$V$29*100 -> 7.055206518 | C15: ='Constant PRICE Estimate'!W15/'Constant PRICE Estimate'!$W$29*100 -> 7.475635509
A16: Real Estate Activities | B16: ='Constant PRICE Estimate'!V16/'Constant PRICE Estimate'!$V$29*100 -> 2.681141272 | C16: ='Constant PRICE Estimate'!W16/'Constant PRICE Estimate'!$W$29*100 -> 2.779487589
A17: Professional, Scientific and Technical Activities | B17: ='Constant PRICE Estimate'!V17/'Constant PRICE Estimate'!$V$29*100 -> 0.9463869068 | C17: ='Constant PRICE Estimate'!W17/'Constant PRICE Estimate'!$W$29*100 -> 0.9604757698
A18: Administrative and support service activities | B18: ='Constant PRICE Estimate'!V18/'Constant PRICE Estimate'!$V$29*100 -> 1.020905632 | C18: ='Constant PRICE Estimate'!W18/'Constant PRICE Estimate'!$W$29*100 -> 0.9977385234
A19: Public Administration and Defence; Compulsory Social Security | B19: ='Constant PRICE Estimate'!V19/'Constant PRICE Estimate'!$V$29*100 -> 2.348689837 | C19: ='Constant PRICE Estimate'!W19/'Constant PRICE Estimate'!$W$29*100 -> 2.337052646
A20: Education | B20: ='Constant PRICE Estimate'!V20/'Constant PRICE Estimate'!$V$29*100 -> 2.799647465 | C20: ='Constant PRICE Estimate'!W20/'Constant PRICE Estimate'!$W$29*100 -> 2.79360001
A21: Human Health and Social Work Activities | B21: ='Constant PRICE Estimate'!V21/'Constant PRICE Estimate'!$V$29*100 -> 2.443429158 | C21: ='Constant PRICE Estimate'!W21/'Constant PRICE Estimate'!$W$29*100 -> 2.48457433
A22: Arts, Entertainment and Recreation | B22: ='Constant PRICE Estimate'!V22/'Constant PRICE Estimate'!$V$29*100 -> 0.4788142623 | C22: ='Constant PRICE Estimate'!W22/'Constant PRICE Estimate'!$W$29*100 -> 0.4858211855
A23: Other Services | B23: ='Constant PRICE Estimate'!V23/'Constant PRICE Estimate'!$V$29*100 -> 1.406104847 | C23: ='Constant PRICE Estimate'!W23/'Constant PRICE Estimate'!$W$29*100 -> 1.436986483
A24: Activities of Households as Employers Producing Activities of Households for own use | B24: ='Constant PRICE Estimate'!V24/'Constant PRICE Estimate'!$V$29*100 -> 0.1275491249 | C24: ='Constant PRICE Estimate'!W24/'Constant PRICE Estimate'!$W$29*100 -> 0.1284207568
A25: GDP basic price | B25: ='Constant PRICE Estimate'!V25/'Constant PRICE Estimate'!$V$29*100 -> 95.00987771 | C25: ='Constant PRICE Estimate'!W25/'Constant PRICE Estimate'!$W$29*100 -> 95.00602988
A26: Net taxes on products | B26: ='Constant PRICE Estimate'!V26/'Constant PRICE Estimate'!$V$29*100 -> 4.990122291 | C26: ='Constant PRICE Estimate'!W26/'Constant PRICE Estimate'!$W$29*100 -> 4.993970124
A27: Taxes on products | B27: ='Constant PRICE Estimate'!V27/'Constant PRICE Estimate'!$V$29*100 -> 5.119132568 | C27: ='Constant PRICE Estimate'!W27/'Constant PRICE Estimate'!$W$29*100 -> 5.139775643
A28: Subsidies | B28: ='Constant PRICE Estimate'!V28/'Constant PRICE Estimate'!$V$29*100 -> 0.1290102766 | C28: ='Constant PRICE Estimate'!W28/'Constant PRICE Estimate'!$W$29*100 -> 0.145805519
A29: Total Contribution at market price | B29: ='Constant PRICE Estimate'!V29/'Constant PRICE Estimate'!$V$29*100 -> 100 | C29: ='Constant PRICE Estimate'!W29/'Constant PRICE Estimate'!$W$29*100 -> 100

Sheet Q-Q Growth rate
A1: Table 2c. Quarter to Quarter Gross Domestic Product Growth Rate at Constant Prices (2024Q1=100) by industry
A3: Industry | B3: 2024 | C3: 2024
B4: Q1 | C4: Q1
A5: Agriculture, Fishing and forestry | B5: - | C5: ='Constant PRICE Estimate'!W5/'Constant PRICE Estimate'!V5*100-100 -> -22.41442315
A6: Mining and Quarrying | B6: - | C6: ='Constant PRICE Estimate'!W6/'Constant PRICE Estimate'!V6*100-100 -> 1.316848434
A7: Manufacturing | B7: - | C7: ='Constant PRICE Estimate'!W7/'Constant PRICE Estimate'!V7*100-100 -> 0.8074904023
A8: Electricity, Gas, Steam and Air Conditioning Supply | B8: - | C8: ='Constant PRICE Estimate'!W8/'Constant PRICE Estimate'!V8*100-100 -> -3.395819632
A9: Water Supply; Sewerage, Waste Management and Remediation Activities | B9: - | C9: ='Constant PRICE Estimate'!W9/'Constant PRICE Estimate'!V9*100-100 -> -7.17314071
A10: Construction | B10: - | C10: ='Constant PRICE Estimate'!W10/'Constant PRICE Estimate'!V10*100-100 -> 4.051914182
A11: Wholesale and Retail Trade; Repair of Motor Vehicles and Motorcycles | B11: - | C11: ='Constant PRICE Estimate'!W11/'Constant PRICE Estimate'!V11*100-100 -> 3.764041463
A12: Transportation and Storage | B12: - | C12: ='Constant PRICE Estimate'!W12/'Constant PRICE Estimate'!V12*100-100 -> 24.08516077
A13: Accommodation and Food Service Activities | B13: - | C13: ='Constant PRICE Estimate'!W13/'Constant PRICE Estimate'!V13*100-100 -> -7.350425529
A14: Information and Communication | B14: - | C14: ='Constant PRICE Estimate'!W14/'Constant PRICE Estimate'!V14*100-100 -> -1.598673652
A15: Financial and Insurance Activities | B15: - | C15: ='Constant PRICE Estimate'!W15/'Constant PRICE Estimate'!V15*100-100 -> 4.254189902
A16: Real Estate Activities | B16: - | C16: ='Constant PRICE Estimate'!W16/'Constant PRICE Estimate'!V16*100-100 -> 2
A17: Professional, Scientific and Technical Activities | B17: - | C17: ='Constant PRICE Estimate'!W17/'Constant PRICE Estimate'!V17*100-100 -> -0.1443091769
A18: Administrative and support service activities | B18: - | C18: ='Constant PRICE Estimate'!W18/'Constant PRICE Estimate'!V18*100-100 -> -3.841811831
A19: Public Administration and Defence; Compulsory Social Security | B19: - | C19: ='Constant PRICE Estimate'!W19/'Constant PRICE Estimate'!V19*100-100 -> -2.096558678
A20: Education | B20: - | C20: ='Constant PRICE Estimate'!W20/'Constant PRICE Estimate'!V20*100-100 -> -1.821587319
A21: Human Health and Social Work Activities | B21: - | C21: ='Constant PRICE Estimate'!W21/'Constant PRICE Estimate'!V21*100-100 -> 0.0477606129
A22: Arts, Entertainment and Recreation | B22: - | C22: ='Constant PRICE Estimate'!W22/'Constant PRICE Estimate'!V22*100-100 -> -0.1692113927
A23: Other Services | B23: - | C23: ='Constant PRICE Estimate'!W23/'Constant PRICE Estimate'!V23*100-100 -> 0.55185991
A24: Activities of Households as Employers Producing Activities of Households for own use | B24: - | C24: ='Constant PRICE Estimate'!W24/'Constant PRICE Estimate'!V24*100-100 -> -0.9366815362
A25: GDP at Basic Prices | B25: - | C25: ='Constant PRICE Estimate'!W25/'Constant PRICE Estimate'!V25*100-100 -> -1.61304005
A26: Net Taxes on Products | B26: - | C26: ='Constant PRICE Estimate'!W26/'Constant PRICE Estimate'!V26*100-100 -> -1.533187021
A27: Taxes on Products | B27: - | C27: ='Constant PRICE Estimate'!W27/'Constant PRICE Estimate'!V27*100-100 -> -1.212290471
A28: Less Subsidies on Products | B28: - | C28: ='Constant PRICE Estimate'!W28/'Constant PRICE Estimate'!V28*100-100 -> 11.2
A29: GDP at Market Prices | B29: - | C29: ='Constant PRICE Estimate'!W29/'Constant PRICE Estimate'!V29*100-100 -> -1.609055286
